bitfinex-derivatives/quotes_ETHF0:USTF0_20250624
["timestamp","ask_amount","ask_price","bid_price","bid_amount"]
[1750738944602,0.83371,2397.4,2397.3,2.0818]
[1750738944908,0.83373,2397.3,2397.1,7.12438178]
[1750738945098,0.83373,2397.3,2397.1,12.20935387]
[1750738945295,0.83373,2397.3,2397.2,2.0818]
[1750738945805,0.83373,2397.3,2397.2,7.16677209]
[1750738948010,0.83373,2397.3,2397.2,2.0818]
[1750738948211,0.83376,2397.2,2397.1,3.2078]
[1750738948404,0.83385,2397.0,2396.8,3.8935]
[1750738948603,0.83378,2397.2,2397.0,2.0818]
[1750738948911,0.83378,2397.2,2397.1,2.0818]
[1750738951110,0.83378,2397.2,2397.1,5.2896]
[1750738951314,0.83376,2397.3,2397.1,12.86025387]
[1750738951504,7.2617,2397.6,2397.3,2.0818]
[1750738951505,0.8337,2397.4,2397.3,2.0818]
[1750738953714,0.83368,2397.5,2397.3,2.0818]
[1750738953916,0.83369,2397.4,2397.3,2.0818]
[1750738956113,0.83367,2397.5,2397.3,2.0818]
[1750738957320,0.83369,2397.4,2397.3,2.0818]
[1750738957910,0.8974415,2397.4,2397.3,2.0818]
[1750738958713,0.0637515,2397.4,2397.3,9.65245387]
[1750738958915,0.0637515,2397.4,2397.3,10.48618387]
[1750738959116,0.0637515,2397.4,2397.3,11.92788387]
[1750738959715,0.8974415,2397.4,2397.3,11.09415387]
[1750738960016,0.83368,2397.5,2397.3,11.09415387]
[1750738960207,0.83369,2397.4,2397.3,15.57835387]
[1750738960609,0.83369,2397.4,2397.3,17.66015387]
[1750738960809,0.8974415,2397.4,2397.3,11.09415387]
[1750738961615,0.0637515,2397.4,2397.3,11.92788387]
[1750738961916,0.0637515,2397.4,2397.3,16.92788387]
[1750738962512,0.0637515,2397.4,2397.3,11.92788387]
[1750738963318,0.83361,2397.7,2397.5,0.83365]
[1750738963518,0.83357,2397.8,2397.7,0.83359]
[1750738963720,0.83354,2397.9,2397.7,2.27319]
[1750738963915,0.83354,2397.9,2397.8,1.4396]
[1750738964121,0.83354,2397.9,2397.8,3.5214]
[1750738964320,0.83354,2397.9,2397.8,8.60637209]
[1750738964520,7.2767,2398.1,2397.8,8.60637209]
[1750738964731,0.83349,2398.0,2397.9,2.0818]
[1750738964916,8.11017,2398.1,2397.9,2.0818]
[1750738965525,8.11017,2398.1,2398.0,0.6596]
[1750738967223,0.83374,2397.3,2396.9,6.52733178]
[1750738967521,0.83374,2397.3,2397.0,0.6716]
[1750738967720,0.83374,2397.3,2397.2,2.0818]
[1750738968218,0.83374,2397.3,2397.2,7.16677209]
[1750738968821,0.83373,2397.3,2397.2,7.16677209]
[1750738970325,3.2078,2397.5,2397.0,0.6716]
[1750738970326,0.8338,2397.1,2397.0,0.6716]
[1750738970519,0.8338,2397.1,2397.0,5.75657209]
[1750738970719,0.8338,2397.1,2397.0,7.83837209]
[1750738972733,2.08458,2397.1,2396.6,4.87446728]
[1750738973030,4.57026178,2397.1,2396.9,1.2011]
[1750738973220,0.8339,2396.8,2396.7,0.7109]
[1750738973423,0.8339,2396.8,2396.7,5.79587209]
[1750738973729,0.8339,2396.8,2396.7,6.99697209]
[1750738974125,0.83393,2396.7,2396.6,3.2078]
[1750738974321,2.90543,2396.7,2396.6,3.2078]
[1750738974516,0.83407,2396.3,2396.2,7.83378178]
[1750738974726,0.83407,2396.3,2396.2,19.48475387]
[1750738974926,0.83407,2396.3,2396.2,20.68585387]
[1750738975226,0.83407,2396.3,2396.2,12.69335387]
[1750738975431,0.83407,2396.3,2396.2,6.99987209]
[1750738979438,0.83407,2396.3,2396.2,1.9149]
[1750738979631,0.83414,2396.1,2396.0,9.05168178]
[1750738979828,0.83414,2396.1,2396.0,14.13665387]
[1750738980136,0.83413,2396.2,2396.0,15.33775387]
[1750738980326,0.83414,2396.1,2396.0,14.13665387]
[1750738980729,0.83414,2396.1,2396.0,15.33775387]
[1750738981134,0.7131,2396.7,2396.0,20.33775387]
[1750738981439,0.834,2396.5,2396.4,1.2011]
[1750738981826,0.834,2396.5,2396.4,1.9243]
[1750738982228,0.83407,2396.3,2396.2,3.2078]
[1750738982434,0.83407,2396.3,2396.2,8.29277209]
[1750738982628,0.83407,2396.3,2396.2,9.49387209]
[1750738984540,0.83405,2396.4,2396.2,9.49387209]
[1750738984737,0.83405,2396.4,2396.3,1.2011]
[1750738985128,0.83405,2396.4,2396.2,3.2078]
[1750738985331,0.83405,2396.4,2396.3,1.2011]
[1750738985828,0.83405,2396.4,2396.2,3.2078]
[1750738986029,0.83405,2396.4,2396.3,1.2011]
[1750738986538,0.83405,2396.4,2396.2,3.2078]
[1750738986837,0.83405,2396.4,2396.3,1.2011]
[1750738987041,0.83421,2395.9,2395.8,3.2078]
[1750738987332,0.83412,2396.2,2396.0,1.2011]
[1750738987530,0.83414,2396.1,2396.0,4.39828178]
[1750738987730,0.83414,2396.1,2396.0,3.19718178]
[1750738988138,0.83413,2396.2,2396.0,3.19718178]
[1750738989137,0.83413,2396.2,2396.1,1.2011]
[1750738989639,0.83413,2396.2,2396.1,6.28607209]
[1750738993845,0.83414,2396.1,2396.0,0.7115]
[1750738994145,0.83421,2395.9,2395.8,5.69348178]
[1750738994347,0.8342,2396.0,2395.8,11.49255387]
[1750738994549,2.8358,2396.3,2395.9,1.2011]
[1750738994839,0.8342,2396.0,2395.8,9.00687209]
[1750738995042,0.8342,2396.0,2395.8,9.84112209]
[1750738995245,0.8342,2396.0,2395.9,1.2011]
[1750738997042,0.83421,2395.9,2395.8,3.9219]
[1750738997340,0.83421,2395.9,2395.8,9.00687209]
[1750738997650,0.83421,2395.9,2395.8,10.20797209]
[1750738998350,0.8342,2396.0,2395.8,10.20797209]
[1750738998540,0.8342,2396.0,2395.9,1.2011]
[1750739000647,0.83421,2395.9,2395.8,3.9219]
[1750739000847,0.83432,2395.6,2395.5,3.2078]
[1750739001143,0.83442,2395.3,2395.2,3.9034]
[1750739001540,0.83442,2395.3,2395.2,10.18947209]
[1750739002538,1.4278,2395.6,2395.2,10.18947209]
[1750739002740,0.83439,2395.4,2395.3,3.68678178]
[1750739002940,0.83439,2395.4,2395.3,5.07268178]
[1750739004145,0.83439,2395.4,2395.3,1.2011]
[1750739004341,0.83442,2395.3,2395.2,3.2078]
[1750739004542,0.83442,2395.3,2395.2,4.4089]
[1750739008044,6.581,2395.6,2395.2,11.97955387]
[1750739008242,0.83439,2395.4,2395.3,1.2011]
[1750739008441,0.83439,2395.4,2395.3,2.5959]
[1750739008836,6.581,2395.6,2395.3,8.51528209]
[1750739009038,0.8343,2395.7,2395.5,6.89458178]
[1750739009239,0.8343,2395.7,2395.6,1.8657]
[1750739009741,0.83427,2395.8,2395.6,1.8657]
[1750739009943,0.83428,2395.7,2395.6,1.8657]
[1750739010342,0.83432,2395.6,2395.5,3.2078]
[1750739010646,0.83432,2395.6,2395.5,8.29277209]
[1750739010841,0.83432,2395.6,2395.5,9.49387209]
[1750739012047,0.83423,2395.9,2395.6,0.83432]
[1750739012250,0.83421,2395.9,2395.8,1.2011]
[1750739014456,10.5047,2396.0,2395.8,1.2011]
[1750739014650,0.83426,2395.8,2395.5,14.48753178]
[1750739014851,0.83426,2395.8,2395.6,1.4465]
[1750739015050,0.83426,2395.8,2395.7,1.2011]
[1750739015654,0.83426,2395.8,2395.7,6.28607209]
[1750739020760,7.2969,2396.0,2395.7,6.28607209]
[1750739020761,7.41619,2396.0,2395.7,9.60602387]
[1750739021061,7.41619,2396.0,2395.9,1.2011]
[1750739021257,7.41619,2396.0,2395.8,2.1513]
[1750739021459,7.41619,2396.0,2395.9,1.2011]
[1750739021961,7.41619,2396.0,2395.8,2.1513]
[1750739022150,7.41619,2396.0,2395.9,1.2011]
[1750739022151,6.582,2396.0,2395.9,1.2011]
[1750739022356,0.83417,2396.1,2395.9,1.2011]
[1750739022659,0.83413,2396.2,2396.0,1.2011]
[1750739022850,6.576,2396.3,2396.2,1.2011]
[1750739023362,6.576,2396.3,2396.2,1.8881]
[1750739023560,0.83407,2396.4,2396.2,3.233]
[1750739024060,0.83407,2396.3,2396.2,3.233]
[1750739027569,9.7838,2396.6,2396.2,3.233]
[1750739027766,9.7838,2396.6,2396.3,1.2011]
[1750739027965,0.83404,2396.4,2396.3,1.2011]
[1750739028268,0.83407,2396.3,2396.2,2.0319]
[1750739028769,0.83407,2396.3,2396.2,3.233]
[1750739028967,0.83406,2396.4,2396.2,3.233]
[1750739029163,0.83406,2396.4,2396.3,1.2011]
[1750739029570,6.576,2396.6,2396.3,1.2011]
[1750739029571,0.83402,2396.5,2396.3,6.28607209]
[1750739029774,0.83402,2396.5,2396.4,1.2011]
[1750739032775,0.83388,2396.9,2396.5,0.83397]
[1750739032967,0.83388,2396.9,2396.8,1.2011]
[1750739034867,0.83381,2397.1,2396.8,6.28607209]
[1750739035069,0.7015,2397.2,2396.9,1.2011]
[1750739035373,0.83382,2397.1,2396.9,1.2011]
[1750739035569,0.83382,2397.1,2397.0,0.6764]
[1750739036774,0.8339,2396.8,2396.7,3.2078]
[1750739037076,0.8339,2396.8,2396.7,4.4089]
[1750739038478,5.29221,2397.2,2396.7,16.06787209]
[1750739038479,3.2078,2397.2,2396.7,16.06787209]
[1750739038773,0.83382,2397.1,2396.9,3.68678178]
[1750739038969,0.83382,2397.1,2397.0,0.7279]
[1750739039868,0.83378,2397.2,2397.0,0.7279]
[1750739040064,0.8338,2397.1,2397.0,0.7279]
[1750739040774,0.83375,2397.3,2397.0,7.01397209]
[1750739040967,0.83375,2397.3,2397.2,1.2011]
[1750739041476,0.83375,2397.3,2397.1,2.0586]
[1750739041669,0.83375,2397.3,2397.2,1.2011]
[1750739042075,0.83375,2397.3,2397.1,2.0586]
[1750739042275,0.83375,2397.3,2397.2,1.2011]
[1750739042677,0.83376,2397.2,2397.1,0.7135]
[1750739042881,0.83376,2397.2,2397.1,6.99957209]
[1750739043670,0.83375,2397.3,2397.1,6.99957209]
[1750739043871,0.8337,2397.4,2397.2,1.2011]
[1750739044473,1.55588,2397.5,2397.2,1.2011]
[1750739044677,1.55588,2397.5,2397.1,5.43148178]
[1750739044877,1.55588,2397.5,2397.2,1.2011]
[1750739045078,0.83369,2397.4,2397.2,1.2011]
[1750739045279,0.83373,2397.3,2397.2,1.2011]
[1750739048883,0.83371,2397.4,2397.2,1.2011]
[1750739049381,0.83366,2397.5,2397.3,3.68678178]
[1750739049683,0.83366,2397.5,2397.4,1.2011]
[1750739049885,0.83366,2397.5,2397.4,1.8746]
[1750739051788,1.4215,2397.8,2397.4,6.95957209]
[1750739051990,0.83357,2397.8,2397.7,1.2011]
[1750739052280,0.83353,2397.9,2397.7,6.28607209]
[1750739052485,0.83353,2397.9,2397.8,1.2011]
[1750739052673,0.83353,2397.9,2397.8,1.8624]
[1750739052878,3.2078,2398.1,2397.8,6.94737209]
[1750739053086,0.8335,2398.0,2397.9,1.2011]
[1750739055993,0.83355,2397.8,2397.7,3.2078]
[1750739057393,0.83354,2397.9,2397.7,3.2078]
[1750739059287,3.2078,2398.1,2397.8,1.2011]
[1750739059492,0.83347,2398.1,2397.9,1.2011]
[1750739060089,0.83348,2398.0,2397.9,1.2011]
[1750739061599,0.83347,2398.1,2397.9,8.77175387]
[1750739061897,0.83347,2398.1,2397.9,7.57065387]
[1750739062101,0.83347,2398.1,2398.0,1.2011]
[1750739062487,0.83347,2398.1,2398.0,6.28607209]
[1750739064090,0.83347,2398.1,2398.0,1.2011]
[1750739064491,0.83347,2398.1,2398.0,6.28607209]
[1750739065390,0.83352,2397.9,2397.8,0.7192]
[1750739065901,0.83352,2397.9,2397.8,1.9203]
[1750739066394,0.8972715,2397.9,2397.8,1.9203]
[1750739068894,0.0637515,2397.9,2397.8,1.9203]
[1750739069603,0.0637515,2397.9,2397.8,2.75385]
[1750739070106,0.0637515,2397.9,2397.8,9.26482209]
[1750739070404,4.04112,2398.5,2398.1,0.83342]
[1750739070598,4.04112,2398.5,2398.3,1.2011]
[1750739070789,0.83326,2398.7,2398.4,4.52012178]
[1750739070994,3.2078,2398.8,2398.6,4.52003178]
[1750739071209,3.2078,2398.8,2398.7,1.8962]
[1750739071502,3.2078,2398.8,2398.7,4.0168]
[1750739071900,3.2078,2398.8,2398.7,9.93501209]
[1750739072094,0.83316,2399.0,2398.7,9.93501209]
[1750739072404,0.83314,2399.0,2398.9,1.2011]
[1750739072902,0.83314,2399.0,2398.7,6.0235]
[1750739073103,7.07104456,2399.4,2398.9,1.2011]
[1750739073294,0.83308,2399.2,2399.0,3.68678178]
[1750739073490,0.83305,2399.3,2399.0,3.68678178]
[1750739074209,0.83307,2399.2,2399.0,2.48568178]
[1750739074407,0.83307,2399.2,2399.1,1.2011]
[1750739074799,0.83307,2399.2,2399.0,2.48568178]
[1750739074999,5.9838,2399.4,2399.1,1.2011]
[1750739075309,0.83307,2399.2,2399.1,1.2011]
[1750739075515,0.83312,2399.1,2398.8,10.46888178]
[1750739075806,0.83312,2399.1,2398.8,15.55385387]
[1750739076008,0.83312,2399.1,2399.0,1.2011]
[1750739077101,2.48568178,2399.1,2398.7,3.2078]
[1750739077312,2.48568178,2398.9,2398.4,3.2078]
[1750739077503,0.83328,2398.6,2398.5,1.2011]
[1750739077700,0.83331,2398.5,2398.4,4.4089]
[1750739081414,0.8333,2398.6,2398.4,4.4089]
[1750739081913,0.8333,2398.6,2398.5,3.68678178]
[1750739082511,0.8333,2398.6,2398.4,3.2078]
[1750739082512,0.83331,2398.5,2398.4,3.2078]
[1750739082703,0.8333,2398.6,2398.5,1.2011]
[1750739083099,0.6885,2398.8,2398.5,6.28607209]
[1750739083307,0.83322,2398.8,2398.7,1.2011]
[1750739083499,7.41319,2398.9,2398.7,1.2011]
[1750739083707,0.83319,2398.9,2398.8,3.68678178]
[1750739083899,0.6724,2399.0,2398.8,2.48568178]
[1750739084106,0.83317,2398.9,2398.8,2.48568178]
[1750739084416,1.50556,2399.0,2398.8,2.48568178]
[1750739084606,0.83317,2398.9,2398.8,3.68678178]
[1750739085313,0.6618,2399.1,2398.8,8.77175387]
[1750739085514,6.58,2399.2,2399.0,1.2011]
[1750739086117,0.6944,2399.3,2399.0,7.57065387]
[1750739086310,0.83305,2399.3,2399.1,1.2011]
[1750739086511,0.83305,2399.3,2399.1,1.871]
[1750739086717,6.58,2399.5,2399.1,1.871]
[1750739086718,6.58,2399.5,2399.2,3.68678178]
[1750739087014,6.58,2399.5,2399.3,1.2011]
[1750739087208,0.833,2399.4,2399.3,1.2011]
[1750739087408,0.83298,2399.5,2399.3,1.2011]
[1750739088116,0.833,2399.4,2399.3,1.2011]
[1750739089016,0.8331,2399.1,2399.0,3.2078]
[1750739090014,9.7868,2399.1,2398.4,3.9245]
[1750739090215,5.20178178,2399.0,2398.6,1.2011]
[1750739090514,5.20178178,2399.0,2398.6,3.68678178]
[1750739090515,0.83323,2398.8,2398.6,3.68678178]
[1750739090914,0.83324,2398.7,2398.6,1.2011]
[1750739091215,0.83331,2398.5,2398.4,5.2938]
[1750739091418,0.8333,2398.6,2398.4,14.06555387]
[1750739091620,0.83326,2398.7,2398.6,1.2011]
[1750739091822,0.83326,2398.7,2398.4,12.86445387]
[1750739092014,0.83326,2398.7,2398.6,1.2011]
[1750739092524,0.8333,2398.6,2398.4,6.41018178]
[1750739092823,0.8333,2398.6,2398.4,11.49515387]
[1750739093120,0.8333,2398.6,2398.5,1.2011]
[1750739093522,0.8333,2398.6,2398.5,6.28607209]
[1750739094422,0.8333,2398.6,2398.5,1.2011]
[1750739099623,0.83326,2398.7,2398.5,1.2011]
[1750739099831,0.83326,2398.7,2398.6,1.2011]
[1750739100325,0.8333,2398.6,2398.4,6.41018178]
[1750739100519,0.8333,2398.6,2398.4,11.49515387]
[1750739100826,0.8333,2398.6,2398.5,1.2011]
[1750739101026,0.83326,2398.7,2398.5,1.2011]
[1750739101221,0.83326,2398.7,2398.6,1.2011]
[1750739101623,0.83326,2398.7,2398.5,0.8333]
[1750739101823,0.83326,2398.7,2398.6,3.68678178]
[1750739102219,0.83326,2398.7,2398.6,2.48568178]
[1750739103221,0.83326,2398.7,2398.6,3.68678178]
[1750739103716,0.83326,2398.7,2398.6,1.2011]
[1750739104628,0.83327,2398.6,2398.5,0.7027]
[1750739104931,0.83327,2398.6,2398.5,5.78767209]
[1750739105227,0.83327,2398.6,2398.5,6.98877209]
[1750739108831,0.83327,2398.6,2398.5,8.39877209]
[1750739110618,15.69995456,2399.1,2398.5,13.39877209]
[1750739110619,7.77345456,2399.1,2398.5,13.39877209]
[1750739110822,0.83314,2399.0,2398.9,1.2011]
[1750739114840,0.83314,2399.0,2398.9,6.28607209]
[1750739115033,0.83314,2399.0,2398.9,8.77175387]
[1750739116835,0.83314,2399.0,2398.9,6.28607209]
[1750739117039,0.83314,2399.0,2398.9,1.2011]
[1750739118142,0.83314,2399.0,2398.9,1.9188]
[1750739119040,0.83314,2399.0,2398.9,7.00377209]
[1750739119247,0.83314,2399.0,2398.9,9.08777209]
[1750739120039,0.8968915,2399.0,2398.9,9.08777209]
[1750739120236,0.8968915,2399.0,2398.9,1.9188]
[1750739121134,2.48284456,2399.2,2398.9,7.00377209]
[1750739121435,0.83297,2399.5,2399.1,0.83308]
[1750739121642,0.833,2399.4,2399.3,2.48568178]
[1750739121936,0.83298,2399.5,2399.3,4.58888178]
[1750739122141,0.83298,2399.5,2399.4,1.393]
[1750739122349,0.83298,2399.5,2399.4,2.5941]
[1750739123143,0.83298,2399.5,2399.4,1.2011]
[1750739124046,0.83298,2399.5,2399.4,2.5338]
[1750739124937,3.2078,2399.7,2399.4,2.5338]
[1750739125138,0.83294,2399.6,2399.5,2.5338]
[1750739134246,3.2078,2399.7,2399.5,2.5338]
[1750739134449,0.83285,2399.9,2399.6,3.39352]
[1750739134650,0.83285,2399.9,2399.7,2.0236]
[1750739134951,0.83285,2399.9,2399.8,1.2011]
[1750739141756,0.83289,2399.7,2399.6,3.2078]
[1750739142260,0.83289,2399.7,2399.6,4.4089]
[1750739143355,0.83289,2399.7,2399.6,5.8412]
[1750739143557,0.83289,2399.7,2399.6,4.4089]
[1750739144161,0.83293,2399.6,2399.5,0.6576]
[1750739144662,3.2078,2399.7,2399.3,3.2078]
[1750739144869,0.83293,2399.6,2399.5,1.2011]
[1750739145359,3.2078,2400.0,2399.5,3.68678178]
[1750739145559,0.83286,2399.8,2399.7,1.2011]
[1750739146760,0.83294,2399.6,2399.4,1.4437]
[1750739147153,0.83294,2399.6,2399.5,1.2011]
[1750739147360,0.8329,2399.7,2399.5,1.2011]
[1750739147558,5.69629836,2400.0,2399.7,1.2011]
[1750739147856,0.83286,2399.8,2399.7,1.2011]
[1750739148061,0.83285,2399.9,2399.8,0.7217]
[1750739148457,0.83293,2399.6,2399.5,3.92938178]
[1750739148664,0.83296,2399.5,2399.4,0.7217]
[1750739149054,0.83295,2399.6,2399.4,1.9228]
[1750739149360,0.83295,2399.6,2399.4,0.7217]
[1750739149664,0.83295,2399.6,2399.5,1.2011]
[1750739150767,0.83296,2399.5,2399.4,0.7217]
[1750739151158,0.83296,2399.5,2399.4,1.9228]
[1750739152864,0.83296,2399.5,2399.4,1.2011]
[1750739155469,0.833,2399.4,2399.3,3.2078]
[1750739155970,0.83307,2399.2,2399.1,0.7211]
[1750739156357,0.8331,2399.1,2399.0,3.2078]
[1750739157269,4.49439836,2399.3,2399.0,3.2078]
[1750739157465,2.0059,2399.3,2399.0,3.2078]
[1750739157768,0.8331,2399.1,2399.0,3.2078]
[1750739159169,0.83309,2399.2,2399.0,4.4089]
[1750739159468,0.83309,2399.2,2399.0,6.89458178]
[1750739159673,0.8331,2399.1,2399.0,4.4089]
[1750739160870,0.8331,2399.1,2399.0,3.2078]
[1750739161075,0.604,2399.3,2398.8,0.7087]
[1750739161076,0.83317,2398.9,2398.8,0.7087]
[1750739161775,0.83317,2398.9,2398.8,1.9098]
[1750739161975,0.83317,2398.9,2398.8,1.2011]
[1750739164772,0.8332,2398.8,2398.7,3.2078]
[1750739165176,0.8332,2398.8,2398.7,4.4089]
[1750739165775,0.83324,2398.7,2398.6,0.7086]
[1750739165973,11.13566178,2398.9,2398.4,3.2078]
[1750739166269,0.83327,2398.6,2398.5,1.2011]
[1750739166674,1.3432,2398.8,2398.4,3.2078]
[1750739166675,0.83331,2398.5,2398.4,3.2078]
[1750739166877,0.83331,2398.5,2398.4,7.02768178]
[1750739167180,0.83331,2398.5,2398.4,8.22878178]
[1750739167378,0.83331,2398.5,2398.4,4.4089]
[1750739168080,0.83331,2398.5,2398.4,1.2011]
[1750739170481,0.8335,2398.0,2397.8,5.69348178]
[1750739170684,0.8335,2398.0,2397.9,0.6648]
[1750739170883,3.2078,2398.4,2397.9,3.898]
[1750739171180,6.568,2398.5,2398.2,2.48568178]
[1750739171181,0.8334,2398.3,2398.2,2.48568178]
[1750739171383,0.83331,2398.5,2398.4,1.2011]
[1750739171590,0.83331,2398.5,2398.4,3.68678178]
[1750739172080,0.83331,2398.5,2398.4,4.34318178]
[1750739172580,0.83331,2398.5,2398.4,1.8575]
[1750739179984,0.83331,2398.5,2398.4,5.0653]
[1750739180878,0.83331,2398.5,2398.4,7.55098178]
[1750739181077,3.2078,2399.0,2398.4,13.38432178]
[1750739181280,0.83323,2398.8,2398.7,2.48568178]
[1750739181679,0.83323,2398.8,2398.7,3.68678178]
[1750739181875,0.8332,2398.8,2398.7,3.68678178]
[1750739182084,0.8332,2398.8,2398.7,1.2011]
[1750739182579,0.8332,2398.8,2398.7,2.5433]
[1750739183084,0.8969515,2398.8,2398.7,2.5433]
[1750739183284,0.83324,2398.7,2398.6,0.7024]
[1750739183584,0.83331,2398.5,2398.4,0.6564]
[1750739183980,0.83331,2398.5,2398.4,1.8575]
[1750739189791,0.83331,2398.5,2398.4,3.2814]
[1750739190292,9.05749836,2398.8,2398.4,3.2814]
[1750739190588,0.83327,2398.6,2398.5,1.2011]
[1750739192594,0.83327,2398.6,2398.5,2.641]
[1750739192993,0.83327,2398.7,2398.5,5.12668178]
[1750739193292,0.83327,2398.7,2398.6,1.4399]
[1750739193484,0.83327,2398.7,2398.6,2.641]
[1750739193685,0.83322,2398.8,2398.6,2.641]
[1750739193887,0.83322,2398.8,2398.7,4.62218178]
[1750739194085,0.83314,2399.0,2398.7,9.03108178]
[1750739194291,2.48849836,2399.2,2398.9,3.68678178]
[1750739194483,0.8331,2399.1,2399.0,2.1441]
[1750739194891,0.8331,2399.1,2399.0,3.3452]
[1750739195291,0.8331,2399.1,2399.0,1.9209]
[1750739195492,0.8331,2399.1,2399.0,1.2011]
[1750739202807,0.8331,2399.1,2399.0,6.5341]
[1750739206313,9.05549836,2399.6,2399.0,6.5341]
[1750739206514,0.83296,2399.5,2399.4,1.2011]
[1750739206708,0.83296,2399.5,2399.4,1.4427]
[1750739206915,0.83295,2399.6,2399.4,2.6438]
[1750739207108,0.83295,2399.6,2399.5,4.60648178]
[1750739207308,0.83295,2399.6,2399.5,5.80758178]
[1750739208814,9.05549836,2400.1,2399.5,5.80758178]
[1750739209011,0.83286,2399.8,2399.7,1.2011]
[1750739210112,0.83286,2399.8,2399.7,3.68678178]
[1750739210315,0.83286,2399.8,2399.7,5.07858178]
[1750739211309,0.83284,2399.9,2399.7,5.07858178]
[1750739211514,0.83284,2399.9,2399.8,2.5929]
[1750739212314,3.2078,2400.2,2399.8,14.1589]
[1750739212508,0.83271,2400.3,2400.1,1.2011]
[1750739212708,0.83265,2400.4,2400.3,1.2011]
[1750739213012,0.83265,2400.4,2400.3,2.5364]
[1750739214516,0.83265,2400.4,2400.3,1.2011]
[1750739214714,0.83272,2400.2,2400.1,7.2817]
[1750739215020,0.83272,2400.2,2400.1,1.9178]
[1750739221118,0.83272,2400.2,2400.1,1.2011]
[1750739223325,0.83272,2400.2,2400.1,2.6147]
[1750739224720,3.2078,2400.5,2400.1,2.6147]
[1750739224922,0.83265,2400.4,2400.3,1.2011]
[1750739225228,0.83268,2400.3,2400.2,2.0131]
[1750739225612,0.83268,2400.3,2400.2,3.2142]
[1750739227626,0.83268,2400.3,2400.2,1.2011]
[1750739237239,0.83268,2400.3,2400.2,4.4089]
[1750739238231,0.83268,2400.3,2400.2,5.8568]
[1750739241741,0.83268,2400.3,2400.2,2.649]
[1750739243843,0.83266,2400.4,2400.2,2.649]
[1750739244041,2.48849836,2400.6,2400.4,1.2011]
[1750739244246,2.48849836,2400.6,2400.5,4.0403]
[1750739244549,3.32107836,2400.6,2400.5,4.0403]
[1750739247446,3.32107836,2400.6,2400.5,2.5872]
[1750739254749,3.32107836,2400.6,2400.5,1.3861]
[1750739254960,0.83262,2400.5,2400.3,7.2789]
[1750739255147,5.80678014,2400.6,2400.5,1.2011]
[1750739255453,5.80678014,2400.6,2400.3,7.2789]
[1750739255759,5.81494273,2400.6,2400.4,1.2011]
[1750739256056,5.87869423,2400.6,2400.4,1.2011]
[1750739258353,2.49666095,2400.5,2400.4,1.2011]
[1750739258958,5.04609423,2400.6,2400.4,1.2011]
[1750739259151,4.98234273,2400.6,2400.4,1.2011]
[1750739259457,2.49666095,2400.5,2400.4,1.2011]
[1750739262460,0.83262,2400.5,2400.1,8.6603]
[1750739262657,4.98335978,2400.4,2400.3,1.2011]
[1750739264256,2.497678,2400.4,2400.3,1.2011]
[1750739265156,5.705478,2400.5,2400.3,1.2011]
[1750739265755,5.705478,2400.5,2400.3,2.5786]
[1750739265952,5.705478,2400.5,2400.4,1.2011]
[1750739266155,3.2078,2400.5,2400.4,1.2011]
[1750739266458,2.497678,2400.5,2400.3,1.3775]
[1750739266657,2.497678,2400.5,2400.4,1.2011]
[1750739267154,2.497678,2400.5,2400.3,1.3775]
[1750739267350,2.497678,2400.5,2400.4,1.2011]
[1750739268061,2.497678,2400.6,2400.4,1.2011]
[1750739268255,2.497678,2400.6,2400.5,0.83261]
[1750739268458,2.497678,2400.6,2400.5,0.708]
[1750739270254,2.497678,2400.7,2400.5,0.708]
[1750739270849,2.497678,2400.7,2400.6,1.2011]
[1750739271056,5.705478,2400.8,2400.6,3.3085]
[1750739271259,5.705478,2400.8,2400.7,1.2011]
[1750739272164,2.497678,2400.9,2400.7,1.2011]
[1750739272365,2.497678,2400.9,2400.8,1.2011]
[1750739273664,3.330158,2400.9,2400.8,1.2011]
[1750739273962,0.83251,2400.8,2400.6,0.6665]
[1750739274263,4.04031,2400.8,2400.6,0.6665]
[1750739275061,3.2078,2400.8,2400.6,0.6665]
[1750739275365,4.04032,2400.8,2400.6,0.6665]
[1750739275666,3.2078,2400.8,2400.6,1.8676]
[1750739276059,4.04032,2400.8,2400.6,1.8676]
[1750739276258,3.2078,2400.8,2400.5,0.708]
[1750739276458,3.2078,2400.8,2400.6,1.2011]
[1750739276759,3.2078,2400.8,2400.7,0.6702]
[1750739277463,4.04033,2400.8,2400.6,1.4356]
[1750739279367,6.52601178,2400.8,2400.5,0.708]
[1750739279564,6.52601178,2400.8,2400.6,1.2011]
[1750739279963,9.02368978,2400.8,2400.5,0.708]
[1750739280166,9.02368978,2400.8,2400.6,1.2011]
[1750739280467,0.83258,2400.6,2400.5,1.9091]
[1750739280668,0.83258,2400.6,2400.3,0.6713]
[1750739280669,0.83264,2400.5,2400.3,0.6713]
[1750739280959,3.31833178,2400.4,2400.3,0.6713]
[1750739281161,3.31833178,2400.4,2400.2,3.2078]
[1750739281363,3.31833178,2400.4,2400.3,1.2011]
[1750739281563,3.31833178,2400.4,2400.1,1.3881]
[1750739281564,0.83272,2400.2,2400.1,1.3881]
[1750739281865,3.2078,2400.2,2399.9,1.3311]
[1750739282073,0.83267,2400.4,2400.1,1.2011]
[1750739282265,0.83267,2400.4,2400.2,1.2011]
[1750739282561,8.19115978,2400.5,2400.0,2.7331]
[1750739282562,9.02379978,2400.5,2400.3,1.2011]
[1750739282765,6.538118,2400.5,2400.3,1.2011]
[1750739282967,5.705478,2400.5,2400.4,0.6661]
[1750739283169,3.2078,2400.5,2400.4,0.6661]
[1750739284370,4.04042,2400.5,2400.4,0.6661]
[1750739285367,2.497678,2400.6,2400.4,0.6661]
[1750739285567,3.330268,2400.6,2400.4,0.6661]
[1750739286066,5.69348178,2400.5,2399.8,2.49951728]